Cogmind - Beta 17 @@@ ROGUE MODE // 2026.07.07 @ 20:48:15 Player: Cinder Result: Destroyed by as-58020 with Assembled Heavy Rifle Performance ------------- Evolutions (0) 0 Regions Visited (4) 800 Robots Destroyed (10) 50 Value Destroyed (137) 137 Prototype IDs (0) 0 Alien Tech Used (0) 0 Bonus (0) 0 TOTAL SCORE: 987 Bonus ------- None Cogmind --------- Core Integrity 0/250 Matter 276/300 Energy 100/100 System Corruption 4% Temperature Cool (0) Movement Core (100) Ox1 Location -9/Mines Parts ------- > --- POWER (1) -------- (None) > --- PROPULSION (2) --- (None) > --- UTILITY (2) ------ Small Storage Unit > --- WEAPON (2) ------- (None) > --- INVENTORY (8) ---- Ion Engine Scrap Suit High-capacity Battery (250) High-capacity Matter Pod (200) Seismic Detector Assault Rifle Peak State ------------ > --- POWER ------------ Ion Engine > --- PROPULSION ------- Wheel Wheel > --- UTILITY ---------- Small Storage Unit Light Armor Plating > --- WEAPON ----------- Assault Rifle Assault Rifle > --- INVENTORY -------- Ion Engine Wheel Scrap Suit High-capacity Battery Medium Matter Pod Seismic Detector Grenade Launcher [Rating: 8] Favorites ----------- Power Ion Engine Engine Ion Engine Propulsion Wheel Wheel Wheel Utility Small Storage Unit Storage Small Storage Unit Protection Light Armor Plating Weapon Assault Rifle Ballistic Gun Assault Rifle Launcher Rocket Launcher Build | -11 -10 -10 -10 -9 ------- Run | Yrd Mat Min Exi Min Slots Evolved . | . . . . . Power . | . . . . . Propulsion . | . . . . . Utility . | . . . . . Weapon . | . . . . . Parts Attached 11 | 6 1 2 . 2 Power 1 | 1 . . . . Engine 1 | 1 . . . . Core . | . . . . . Reactor . | . . . . . Propulsion 5 | 2 . 2 . 1 Treads . | . . . . . Leg . | . . . . . Wheel 5 | 2 . 2 . 1 Hover . | . . . . . Flight . | . . . . . Utility 2 | 1 1 . . . Device . | . . . . . Storage 1 | 1 . . . . Processor . | . . . . . Hackware . | . . . . . Protection 1 | . 1 . . . Artifact . | . . . . . Weapon 3 | 2 . . . 1 Energy Gun . | . . . . . Energy Cannon . | . . . . . Ballistic Gun 2 | 2 . . . . Ballistic Cannon . | . . . . . Launcher 1 | . . . . 1 Special Weapon . | . . . . . Impact Weapon . | . . . . . Slashing Weapon . | . . . . . Piercing Weapon . | . . . . . Special Melee Weapon . | . . . . . Unidentified Prototypes . | . . . . . Parts Lost 7 | . . . . 7 Power 1 | . . . . 1 Propulsion 3 | . . . . 3 Utility 1 | . . . . 1 Weapon 2 | . . . . 2 Highest Loss Streak 7 | . . . . 7 To Critical Strikes . | . . . . . Average Backups 6 | 1 3 7 7 6 Power . | . 1 1 1 1 Propulsion . | . . 1 1 . Utility 3 | . . 3 4 4 Weapon 1 | . 1 1 1 1 Tool/Special . | . . . . . Unused Backups 11 | . . 4 2 5 Power 1 | . . . . 1 Propulsion . | . . . . . Utility 7 | . . 1 2 4 Weapon 3 | . . 3 . . Tool/Special . | . . . . . Average Slot Usage (%) 97 | . 97 100 100 61 Engine 13 | . 14 14 14 7 Wheel 27 | . 28 28 28 18 Storage 14 | . 14 14 14 14 Protection 13 | . 11 14 14 7 Ballistic Gun 27 | . 28 28 28 14 Peak Build Rating 8 | 6 7 8 8 8 Average Rating 7 | 4 6 7 8 5 On Entrance 5 | . 6 7 8 8 Avg Prop Armor Cover (%) . | . . . . . Naked Turns . | . . . . . Heaviest Build 17 | 14 17 17 17 17 Greatest Support 26 | 26 26 26 26 26 Greatest Overweight (x) 1 | . . . . 1 Average Overweight (x) . | . . . . . Largest Inventory Capacity 8 | 8 8 8 8 8 Average Capacity 7 | 7 8 8 8 8 Most Carried 8 | 2 8 8 8 8 Average Carried 6 | 1 3 7 8 7 Final Capacity 8 | 8 8 8 8 8 Final Carried 8 | 2 8 8 8 7 Class Distribution -------------------- 100% | Mutant Dominant Class ---------------- Mutant | -10/Materials Mutant | -10/Mines Mutant | -10/Exiles Mutant | -9/Mines Resources | -11 -10 -10 -10 -9 ----------- Run | Yrd Mat Min Exi Min Matter Collected 464 | 230 106 108 20 . Remotely . | . . . . . Salvage Created 317 | 12 115 142 . 48 Parts 24 | 3 9 11 . 1 Haulers Intercepted . | . . . . . Recyclers Shooed . | . . . . . Parts Field Recycled . | . . . . . Retrieved Matter . | . . . . . Parts Self-Destructed . | . . . . . Prevented . | . . . . . Parts Restored . | . . . . . Kills | -11 -10 -10 -10 -9 ------- Run | Yrd Mat Min Exi Min Combat Hostiles Destroyed 15 | . 2 1 . 12 Guns 3 | . 2 1 . . AOE 12 | . . . . 12 Classes Destroyed 6 | 1 2 2 . 1 Worker 4 | . 2 1 . 1 Tunneler 2 | 1 . 1 . . Recycler 1 | . . 1 . . Grunt 2 | . 2 . . . Sentry 1 | . . 1 . . Assembled 12 | . . . . 12 Best Kill Streak 13 | 1 3 1 . 13 Combat Bots Only 12 | . 2 1 . 12 Max Kills in Single Turn 5 | 1 1 1 . 5 Gunslinging . | . . . . . Exploded 5 | . . . . 5 Melee . | . . . . . Uniques/NPCs Destroyed . | . . . . . Combat | -11 -10 -10 -10 -9 -------- Run | Yrd Mat Min Exi Min Hostile Shots Fired 74 | . 5 4 . 65 Missed 20 | . 1 . . 19 Hits 54 | . 4 4 . 46 Melee 8 | . . . . 8 Projectile 46 | . 4 4 . 38 Damage Taken 887 | . 43 59 . 785 Core 251 | . . . . 251 Absorbed by Shields . | . . . . . Core Remaining (%) 100 | 100 . . . . Volleys Fired 22 | 1 10 8 . 3 Largest 2 | 2 2 2 . 2 Hottest 53 | 40 40 40 . 53 Shots Fired 43 | 2 20 16 . 5 Gun 40 | 2 20 16 . 2 Cannon . | . . . . . Launcher 3 | . . . . 3 Special . | . . . . . Kinetic 40 | 2 20 16 . 2 Thermal . | . . . . . Explosive 3 | . . . . 3 Electromagnetic . | . . . . . Robot Hit Streak 8 | 1 8 5 . 2 Robot Miss Streak 3 | . 3 1 . 1 Penetration Max . | . . . . . Secondary Targets . | . . . . . Shots Hit Robots 28 | 1 11 13 . 3 Core Hits 37 | 1 6 5 . 25 Critical Kills . | . . . . . Critical Parts Destroyed . | . . . . . Critical Strikes . | . . . . . Melee Attacks . | . . . . . Impact . | . . . . . Slashing . | . . . . . Piercing . | . . . . . Sneak Attacks . | . . . . . Combat Hostiles . | . . . . . Follow-up Attacks . | . . . . . Damage Inflicted 1520 | 14 147 174 . 1185 Guns 361 | 14 147 174 . 26 Cannons . | . . . . . Explosions 1159 | . . . . 1159 Melee . | . . . . . Ramming . | . . . . . Kinetic 361 | 14 147 174 . 26 Thermal . | . . . . . Explosive 1159 | . . . . 1159 Electromagnetic . | . . . . . Impact . | . . . . . Slashing . | . . . . . Piercing . | . . . . . Highest Corruption 4 | . . . . 4 Average Corruption 4 | . . . . 4 Corruption Purged . | . . . . . Corruption Blocked . | . . . . . Effects 1 | . . . . 1 Message Errors 1 | . . . . 1 Overload Shots . | . . . . . Overflow Damage 68 | . . . . 68 Projectiles . | . . . . . Explosions 68 | . . . . 68 Melee . | . . . . . Knockbacks . | . . . . . Impact . | . . . . . Kinetic . | . . . . . Secondary . | . . . . . Self-Inflicted Damage 46 | . . . . 46 Shots 2 | . . . . 2 Rammed . | . . . . . Targets Rammed . | . . . . . Kicked . | . . . . . Crushed . | . . . . . Highest Temperature 15 | . 2 5 . 15 Average Temperature 5 | . 2 3 . 7 Received Heat Transfer 122 | . 24 18 . 80 Siege Activations . | . . . . . Martial Activations . | . . . . . Shielding Activations . | . . . . . Robots Disrupted . | . . . . . Combat Hostiles . | . . . . . Robots Corrupted . | . . . . . Combat Hostiles . | . . . . . Parts Fried . | . . . . . Impact Corruptions . | . . . . . Robots Melted . | . . . . . Combat Hostiles . | . . . . . Parts Melted . | . . . . . Heat Transferred . | . . . . . Parts Sabotaged . | . . . . . Parts Stolen . | . . . . . Parts Stripped . | . . . . . Power Chain Reactions . | . . . . . Alert | -11 -10 -10 -10 -9 ------- Run | Yrd Mat Min Exi Min Maximum Alert Level . | . . . . . Low Security (%) 100 | 100 100 100 . 100 Level 1 . | . . . . . Level 2 . | . . . . . Level 3 . | . . . . . Level 4 . | . . . . . Level 5 . | . . . . . High Security . | . . . . . Max Security . | . . . . . Peak Influence 97 | 5 97 24 . 7 Initial 24 | . 3 24 . . Average 17 | . 58 4 . . Influence Increases 199 | 5 149 35 . 10 Destroy 0b10 Robot/C 60 | . 40 20 . . Destroy 0b10 Robot/NC 35 | 5 10 15 . 5 Destroy Leader 20 | . 20 . . . Successful Hack 18 | . 18 . . . Select Force Hacks 60 | . 60 . . . Destroy Structure 6 | . 1 . . 5 Influence Decreases 199 | . 92 97 . 10 Entered New Map 40 | . 2 38 . . Time Decay 150 | . 90 59 . 1 Lost Part 9 | . . . . 9 Squads Dispatched 3 | . 3 . . . Investigation 2 | . 2 . . . Extermination . | . . . . . Reinforcement 1 | . 1 . . . Assault . | . . . . . Garrison . | . . . . . Intercept . | . . . . . Searches Triggered . | . . . . . Construction Impeded . | . . . . . Haulers Reinforced . | . . . . . Active Scanning Responses . | . . . . . Cargo Convoy Interrupts . | . . . . . Stealth | -11 -10 -10 -10 -9 --------- Run | Yrd Mat Min Exi Min Distress Signals . | . . . . . Communications Jammed . | . . . . . Distress Signals . | . . . . . Times Spotted 26 | . 4 1 . 21 Peak Tracking Total 19 | . 2 1 . 19 Tactical Retreats 1 | . . . . 1 Traps | -11 -10 -10 -10 -9 ------- Run | Yrd Mat Min Exi Min Traps Triggered . | . . . . . Indirectly . | . . . . . Trap Hack Attempts . | . . . . . Triggered . | . . . . . Disarmed . | . . . . . Reprogrammed . | . . . . . Reused . | . . . . . Traps Extracted . | . . . . . Installed . | . . . . . Triggered . | . . . . . Machines | -11 -10 -10 -10 -9 ---------- Run | Yrd Mat Min Exi Min Machines Disabled . | . . . . . Max in Single Turn . | . . . . . Machines Repaired . | . . . . . Machines Dismantled . | . . . . . Machines Sabotaged . | . . . . . Overloaded Fab Kills . | . . . . . Hacking | -11 -10 -10 -10 -9 --------- Run | Yrd Mat Min Exi Min Machines Accessed 5 | . 4 . 1 . Terminals 2 | . 2 . . . Fabricators . | . . . . . Repair Stations . | . . . . . Recycling Units 2 | . 2 . . . Scanalyzers . | . . . . . Garrison Access . | . . . . . Total Hacks 13 | . 12 . 1 . Successful 9 | . 8 . 1 . Failed 3 | . 3 . . . Catastrophic . | . . . . . Database Lockouts 1 | . 1 . . . Manual 13 | . 12 . 1 . Terminals 10 | . 10 . . . Fabricators . | . . . . . Repair Stations . | . . . . . Recycling Units 2 | . 2 . . . Scanalyzers . | . . . . . Garrison Access . | . . . . . Terminal Hacks 4 | . 3 . 1 . Record 1 | . . . 1 . Part Schematic 1 | . 1 . . . Robot Analysis 1 | . 1 . . . Registered Components 1 | . 1 . . . Fabricator Hacks . | . . . . . Repair Station Hacks . | . . . . . Recycling Unit Hacks . | . . . . . Scanalyzer . | . . . . . Garrison Access Hacks . | . . . . . Unauthorized Hacks 5 | . 5 . . . Terminals 3 | . 3 . . . Botnet 2 | . 2 . . . Operators 1 | . 1 . . . Fabricators . | . . . . . Repair Stations . | . . . . . Recycling Units 2 | . 2 . . . Tunnel 2 | . 2 . . . Scanalyzers . | . . . . . Garrison Access . | . . . . . Data Cores Recovered . | . . . . . Used . | . . . . . Hacking Detections 2 | . 2 . . . Full Trace Events . | . . . . . Feedback Events . | . . . . . Feedback Blocked . | . . . . . Robot Schematics Acquired . | . . . . . Robots Built . | . . . . . Authchips . | . . . . . Time . | . . . . . Total Robot Build Rating . | . . . . . Part Schematics Acquired 1 | . 1 . . . Parts Built . | . . . . . Authchips . | . . . . . Time . | . . . . . Total Part Build Rating . | . . . . . Part Studies Acquired . | . . . . . Parts Repaired . | . . . . . Time . | . . . . . Parts Recycled . | . . . . . Recycled Matter . | . . . . . Retrieved Matter . | . . . . . Retrieved Components . | . . . . . Parts Scanalyzed . | . . . . . Part Schematics Acquired . | . . . . . Parts Damaged . | . . . . . Bothacking | -11 -10 -10 -10 -9 ------------ Run | Yrd Mat Min Exi Min Used RIF Installer . | . . . . . Robots Hacked . | . . . . . Non-combat . | . . . . . Combat . | . . . . . Robot Hacks Applied . | . . . . . Relay Couplers Released . | . . . . . Fabnet Peak Effective % . | . . . . . Robots Rewired . | . . . . . Allies Hacked . | . . . . . Hacks Repelled . | . . . . . Allies | -11 -10 -10 -10 -9 -------- Run | Yrd Mat Min Exi Min Total Allies . | . . . . . Largest Group . | . . . . . Highest-Rated Group . | . . . . . Highest-Rated Ally . | . . . . . Total Orders . | . . . . . Ally Attacks . | . . . . . Total Damage . | . . . . . Kills . | . . . . . Allies Corrupted . | . . . . . Allies Melted . | . . . . . Intel | -11 -10 -10 -10 -9 ------- Run | Yrd Mat Min Exi Min Active Infowar (turns) . | . . . . . Robot Analysis Total 1 | . 1 . . . Derelict Logs Recovered 1 | . . 1 . . Drone Launches . | . . . . . Drone Recoveries . | . . . . . Exploration | -11 -10 -10 -10 -9 ------------- Run | Yrd Mat Min Exi Min Turns Passed 1039 | 58 184 435 316 46 Spaces Moved 1074 | 50 148 485 351 40 Core 7 | 1 . . . 6 Treads . | . . . . . Legs . | . . . . . Wheels 1067 | 49 148 485 351 34 Hover . | . . . . . Flight . | . . . . . Fastest Speed 50 | 50 90 80 90 80 Average Speed 86 | 87 90 82 90 87 Slowest Speed 100 | 90 90 90 90 100 Overloaded Moves . | . . . . . Propulsion Burnouts . | . . . . . Robots Hopped . | . . . . . Potential Cave-ins . | . . . . . Cave-ins Triggered . | . . . . . Exploration Rate (%) 45 | 3 39 98 70 17 Regions Visited 4 Branch Regions 3 Pre-discovered Areas 4 | . 2 2 . . Known Exits Taken . | . . . . . Unknown Exits Taken 4 | 1 1 1 1 . Scrap Searched 1 | . . 1 . . Spaces Dug . | . . . . . Terrain Destroyed 5 | . . . . 5 Melee . | . . . . . Projectile . | . . . . . AOE 5 | . . . . 5 Terrain Rammed . | . . . . . Walls Destroyed . | . . . . . Machines Disabled . | . . . . . Actions | -11 -10 -10 -10 -9 --------- Run | Yrd Mat Min Exi Min Total 1144 | 58 178 509 354 45 Wait 16 | . 14 2 . . Move 1070 | 49 147 484 350 40 Hop . | . . . . . Pick Up 14 | 2 6 4 2 . Fast Attach 7 | 6 1 . . . Attach 1 | . . . . 1 Detach . | . . . . . Swap 4 | . . 3 . 1 Drop 10 | . . 8 2 . Fire 22 | 1 10 8 . 3 Melee . | . . . . . Ram . | . . . . . Kick . | . . . . . Crush . | . . . . . Escape Stasis . | . . . . . Rewire . | . . . . . Trap . | . . . . . Miscellaneous . | . . . . . Route ------- -11/Scrapyard -10/Materials -10/Mines (discovered 4 exits: [*Mat x2] / *Exi / [*Sub]) -10/Exiles -9/Mines History --------- Turn | Location | Event 7 | -11/Scrapyard | Discovered new exit (range 16) 59 | -11/Scrapyard | Entered Materials 136 | -10/Materials | Central database locked down 170 | -10/Materials | Discovered new exit (range 15) 243 | -10/Materials | Entered Mines 254 | -10/Mines | Learned location of Storage (-8) 310 | -10/Mines | Build established: Mutant 359 | -10/Mines | Found a Scrap Suit stashed away for nefarious purposes 361 | -10/Mines | Found Scrap Suit 499 | -10/Mines | Joined a pair of Derelicts in attacking an 0b10 outpost 517 | -10/Mines | Discovered new exit (range 5) 543 | -10/Mines | Discovered new exit (range 8) 627 | -10/Mines | Discovered new exit (range 8) 649 | -10/Mines | Received a Rocket Launcher from a helpful Derelict 674 | -10/Mines | Deemed a non-threat by the Exiles lab entrance 675 | -10/Mines | Discovered new exit (range 5) 678 | -10/Mines | Entered Exiles 678 | -10/Exiles | Found Exiles lab abandoned 987 | -10/Exiles | Discovered new exit (range 10) 994 | -10/Exiles | Entered Mines 995 | -9/Mines | Assembled infested the area 1022 | -9/Mines | Core integrity fell below 50% 1036 | -9/Mines | Core integrity fell below 20% 1038 | -9/Mines | Destroyed 12 combat bots 1040 | -9/Mines | Destroyed by as-58020 with Assembled Heavy Rifle Last Messages --------------- 01014_ as-93213 destroyed. 01014_ as-46439 destroyed. 01015_ Wheel destroyed. 01017_ Assault Rifle destroyed. 01017_ Destroyed Asb. Heavy Rifle. 01017_ as-11669 destroyed. 01017_ Destroyed Asb. Hover Unit. 01017_ as-74810 destroyed. 01017_ Destroyed Asb. Heavy Rifle. 01017_ as-44424 destroyed. 01017_ as-48083 destroyed. 01017_ Rocket Launcher destroyed. 01017_ Destroyed Rocket Launcher. 01017_ as-92652 destroyed. 01017_ Destroyed Asb. Hover Unit. 01019_ II4 UJ4JODX:IWZSQ7OQF&EJ4 ,8M,XC 01033_ as-13787 destroyed. 01034_ Wheel destroyed. 01035_ as-18755 destroyed. 01038_ as-73536 destroyed. Map ----- +----------------------------------------------------+ | | | | | | | | | ????????????????????????????????????????? | | ????????????####????????????????????????? | | ?#######???## ##???????????????????????? | | ?# #???# ##??????????????????????? | | ?# #??## #??????????????????????? | | ?# #?## ##?????????????????????? | | ?# #?# #?????###?????????????? | | ?# ### #????# ##????????????? | | ?# ##??# #????????????? | | ?# % ### #????????????? | | ?# ## ! #????????????? | | ?# ### #????????????? | | ?## ###### % ##????????????? | | ??# ##?????????????? | | ??# ##??????????????? | | ??######## ## < #####???????????????? | | ?????????###### a ##??????????#????????? | | ??????????????# a #?????????# ##???????? | | ??????????????# #???????? ##??????? | | ??????????????## #??????? ??????? | | ???????????????# ##???? #?????? | | ???????????????#@ ##?? % ?????? | | ???????????????# # % ????? | | ???????????????## ??????? | | ????????????????## ###??????????? | | ?????????????????# #????????????? | | ?????????????????## #####????????????? | | ??????????????????######????????????????? | | ????????????????????????????????????????? | | ????????????????????????????????????????? | | ????????????????????????????????????????? | | ????????????????????????????????????????? | | ????????????????????????????????????????? | | ????????????????????????????????????????? | | ????????????????????????????????????????? | | ????????????????????????????????????????? | | ????????????????????????????????????????? | | ????????????????????????????????????????? | | ????????????????????????????????????????? | | ????????????????????????????????????????? | | ????????????????????????????????????????? | | ????????????????????????????????????????? | | ????????????????????????????????????????? | | ????????????????????????????????????????? | | ????????????????????????????????????????? | | ????????????????????????????????????????? | +----------------------------------------------------+ Best States ------------- Heat Dissipation 25 Energy Generation 10 Energy Capacity 250 Matter Stores 300 Matter Capacity 300 Sight Range 16 Terrain Scan Density 10 Armor Coverage 150 Evasion (%) 44 Item Schematics ----------------- Huge Storage Unit | -10/Materials | Hacked Robot Schematics ------------------ None Fabricated ------------ Nothing Repaired ---------- Nothing Studied --------- None Alien Tech Used ----------------- None Achievements -------------- None Challenges ------------ None Game ------ Seed DirectedGlidesysCharge Manual? 0 Play Time 00:10:01 Cumulative 178.9 hours Start 2026.07.07 @ 20:36:03 End 2026.07.07 @ 20:48:15 Sessions 5 Manual Loads 0 Difficulty Rogue Special Mode None Game No. 242 Rogue 242 Adventurer 0 Explorer 0 Win Type - Total 3 Types 3/0/0/0/0/0/0/0/0/0 Lore% 77 Gallery% 56 Achievement% 43 Wizard Run 0 Options --------- Layout 0 ASCII 0 Keyboard 0 Movement Numpad Keybinds 0 Fullscreen 1 Font 18/Terminus Map View 76x50 Zoom Use 0% Tactical HUD 1 Map Filters NONE Filters NONE Steam 1 RUN: 8edd2fe6-dfd1-41cb-8cde-cda4f4ddce91